[Event "*** SCC Grand Prix: Titled Tuesday Blitz"]
[Site "Chess.com"]
[Date "2020.08.25"]
[Round "7"]
[White "ChristopherYoo"]
[Black "Siniauski"]
[Result "1-0"]
[WhiteElo "2822"]
[BlackElo "2516"]
[TimeControl "180+1"]
[EndTime "11:19:39 PDT"]
[Termination "ChristopherYoo won on time"]

1. e4 {[%clk 0:03:00.9]} 1... e6 {[%clk 0:02:59.3]} 2. d4 {[%clk 0:03:00.2]}
2... d5 {[%clk 0:02:59.5]} 3. Nc3 {[%clk 0:03:00.4]} 3... Nf6 {[%clk 0:02:59.6]}
4. Bg5 {[%clk 0:02:59.4]} 4... Bb4 {[%clk 0:02:59.1]} 5. exd5 {[%clk 0:02:57.1]}
5... Qxd5 {[%clk 0:02:54.1]} 6. Bxf6 {[%clk 0:02:54.7]} 6... Bxc3+ {[%clk
0:02:54]} 7. bxc3 {[%clk 0:02:53.9]} 7... gxf6 {[%clk 0:02:54.4]} 8. Qg4 {[%clk
0:02:50.6]} 8... Bd7 {[%clk 0:01:55.9]} 9. Qg7 {[%clk 0:02:37.4]} 9... Qe4+
{[%clk 0:01:39.3]} 10. Kd1 {[%clk 0:02:03]} 10... Rf8 {[%clk 0:01:32.2]} 11. Bd3
{[%clk 0:02:02.1]} 11... Qc6 {[%clk 0:00:39.3]} 12. Ne2 {[%clk 0:01:33.7]} 12...
Na6 {[%clk 0:00:33.5]} 13. Qxf6 {[%clk 0:01:10]} 13... Qxg2 {[%clk 0:00:32.1]}
14. Rg1 {[%clk 0:01:00.3]} 14... Qxh2 {[%clk 0:00:29.1]} 15. Be4 {[%clk
0:00:36.1]} 15... c6 {[%clk 0:00:18.9]} 16. Rb1 {[%clk 0:00:32.2]} 16... Qc7
{[%clk 0:00:10.4]} 17. Nf4 {[%clk 0:00:29.7]} 17... Qd8 {[%clk 0:00:06.6]} 18.
Qh6 {[%clk 0:00:25.2]} 18... Qc7 {[%clk 0:00:03.4]} 19. Qg5 {[%clk 0:00:18.3]}
19... Qd8 {[%clk 0:00:02.8]} 20. Rxb7 {[%clk 0:00:14]} 20... Rb8 {[%clk
0:00:01.6]} 21. Rxa7 {[%clk 0:00:07.9]} 21... Rb1+ {[%clk 0:00:01.3]} 22. Kd2
{[%clk 0:00:07.6]} 22... Qxg5 {[%clk 0:00:01.9]} 23. Rxg5 {[%clk 0:00:07.5]}
23... Ke7 {[%clk 0:00:02.6]} 24. Rxa6 {[%clk 0:00:06.4]} 24... Kf6 {[%clk
0:00:02.8]} 25. Rg3 {[%clk 0:00:04.4]} 25... Rfb8 {[%clk 0:00:02.3]} 26. Ra7
{[%clk 0:00:04.4]} 26... Ke7 {[%clk 0:00:01.5]} 27. Nd3 {[%clk 0:00:04.2]} 1-0

[Event "*** SCC Grand Prix: Titled Tuesday Blitz"]
[Site "Chess.com"]
[Date "2020.08.25"]
[Round "7"]
[White "MVM2008"]
[Black "Nemsko"]
[Result "1-0"]
[WhiteElo "2238"]
[BlackElo "2349"]
[TimeControl "180+1"]
[EndTime "11:19:40 PDT"]
[Termination "MVM2008 won by checkmate"]

1. e4 {[%clk 0:03:00.9]} 1... e5 {[%clk 0:02:57.8]} 2. Nf3 {[%clk 0:03:00.2]}
2... Nc6 {[%clk 0:02:57.4]} 3. Bc4 {[%clk 0:02:59.9]} 3... Bc5 {[%clk
0:02:57.2]} 4. b4 {[%clk 0:02:59.5]} 4... Bxb4 {[%clk 0:02:56.8]} 5. c3 {[%clk
0:02:59.6]} 5... Bd6 {[%clk 0:02:49]} 6. d4 {[%clk 0:02:57.7]} 6... Qe7 {[%clk
0:02:48.7]} 7. O-O {[%clk 0:02:52.3]} 7... Nf6 {[%clk 0:02:46.4]} 8. Nbd2 {[%clk
0:02:50.8]} 8... O-O {[%clk 0:02:44.6]} 9. Re1 {[%clk 0:02:49.6]} 9... a6 {[%clk
0:02:38.1]} 10. Nf1 {[%clk 0:02:36.6]} 10... b5 {[%clk 0:02:26.6]} 11. Bd3
{[%clk 0:02:31.9]} 11... Bb7 {[%clk 0:02:19.9]} 12. Ng3 {[%clk 0:02:27.7]} 12...
g6 {[%clk 0:02:16.7]} 13. Bh6 {[%clk 0:02:25]} 13... Rfe8 {[%clk 0:02:15.4]} 14.
Nh4 {[%clk 0:02:07.9]} 14... exd4 {[%clk 0:02:02.5]} 15. Nhf5 {[%clk 0:02:02]}
15... Qe5 {[%clk 0:01:57.5]} 16. f4 {[%clk 0:01:30.9]} 16... Qc5 {[%clk
0:01:55]} 17. Bg5 {[%clk 0:01:17.6]} 17... dxc3+ {[%clk 0:01:51.3]} 18. Kh1
{[%clk 0:01:17.1]} 18... Be7 {[%clk 0:01:32]} 19. Nxe7+ {[%clk 0:01:13]} 19...
Qxe7 {[%clk 0:01:22.8]} 20. e5 {[%clk 0:01:12.6]} 20... Nd4 {[%clk 0:01:15.1]}
21. Bxf6 {[%clk 0:01:09.3]} 21... Qc5 {[%clk 0:01:14.4]} 22. Qg4 {[%clk
0:00:59.7]} 22... c2 {[%clk 0:01:00.2]} 23. Qh4 {[%clk 0:00:53]} 23... Qf8
{[%clk 0:00:24.9]} 24. Re3 {[%clk 0:00:27.6]} 24... Qc5 {[%clk 0:00:17.2]} 25.
Rc1 {[%clk 0:00:16.3]} 25... Qa3 {[%clk 0:00:14.8]} 26. Ne2 {[%clk 0:00:11]}
26... Nxe2 {[%clk 0:00:13.4]} 27. Qxh7+ {[%clk 0:00:10.3]} 27... Kxh7 {[%clk
0:00:07.7]} 28. Rh3+ {[%clk 0:00:10.5]} 28... Kg8 {[%clk 0:00:06.2]} 29. Rh8#
{[%clk 0:00:10.6]} 1-0

[Event "*** SCC Grand Prix: Titled Tuesday Blitz"]
[Site "Chess.com"]
[Date "2020.08.25"]
[Round "7"]
[White "Duong57"]
[Black "elcandado"]
[Result "1-0"]
[WhiteElo "2363"]
[BlackElo "2488"]
[TimeControl "180+1"]
[EndTime "11:19:41 PDT"]
[Termination "Duong57 won on time"]

1. d4 {[%clk 0:03:00.9]} 1... Nf6 {[%clk 0:02:59.6]} 2. c4 {[%clk 0:03:01]} 2...
e6 {[%clk 0:02:59.3]} 3. Nc3 {[%clk 0:03:01]} 3... Bb4 {[%clk 0:02:58.8]} 4. Qc2
{[%clk 0:03:01.4]} 4... b6 {[%clk 0:02:56.9]} 5. e4 {[%clk 0:03:00.9]} 5... c5
{[%clk 0:02:56.4]} 6. d5 {[%clk 0:03:01.3]} 6... Qe7 {[%clk 0:02:56.1]} 7. Ne2
{[%clk 0:03:01.4]} 7... exd5 {[%clk 0:02:51.6]} 8. exd5 {[%clk 0:03:02.3]} 8...
O-O {[%clk 0:02:48.7]} 9. Bd2 {[%clk 0:03:00.9]} 9... d6 {[%clk 0:02:47.5]} 10.
f3 {[%clk 0:03:00.6]} 10... g6 {[%clk 0:02:42.2]} 11. O-O-O {[%clk 0:02:20.7]}
11... Bf5 {[%clk 0:02:41.1]} 12. Qb3 {[%clk 0:02:19.5]} 12... a5 {[%clk
0:02:37.6]} 13. Ng3 {[%clk 0:02:08.7]} 13... Bd7 {[%clk 0:02:31.2]} 14. a3
{[%clk 0:01:56]} 14... a4 {[%clk 0:02:07.2]} 15. Qc2 {[%clk 0:01:54.8]} 15...
Na6 {[%clk 0:01:58.6]} 16. Bd3 {[%clk 0:01:36.4]} 16... Ne8 {[%clk 0:01:38]} 17.
h4 {[%clk 0:01:22.3]} 17... b5 {[%clk 0:01:21.7]} 18. Rde1 {[%clk 0:01:03.2]}
18... Qf6 {[%clk 0:01:15]} 19. Nge4 {[%clk 0:00:55.7]} 19... Qg7 {[%clk
0:01:09.6]} 20. h5 {[%clk 0:00:55.5]} 20... bxc4 {[%clk 0:01:08.5]} 21. Bxc4
{[%clk 0:00:53]} 21... Bf5 {[%clk 0:00:49.5]} 22. hxg6 {[%clk 0:00:44.1]} 22...
Qxg6 {[%clk 0:00:27.5]} 23. g4 {[%clk 0:00:27.5]} 23... Bxe4 {[%clk 0:00:26.6]}
24. fxe4 {[%clk 0:00:27.7]} 24... Nac7 {[%clk 0:00:18.3]} 25. Rh6 {[%clk
0:00:20.7]} 25... Qg7 {[%clk 0:00:16.3]} 26. Reh1 {[%clk 0:00:20.7]} 26... Nf6
{[%clk 0:00:16.1]} 27. g5 {[%clk 0:00:20.5]} 27... Ng4 {[%clk 0:00:15.6]} 28.
R6h4 {[%clk 0:00:19.8]} 28... Nf2 {[%clk 0:00:14.9]} 29. R1h2 {[%clk 0:00:19.7]}
29... Qd4 {[%clk 0:00:13.8]} 30. e5 {[%clk 0:00:15.3]} 1-0

[Event "*** SCC Grand Prix: Titled Tuesday Blitz"]
[Site "Chess.com"]
[Date "2020.08.25"]
[Round "7"]
[White "GukeshDommaraju"]
[Black "Crazy_girl99"]
[Result "1-0"]
[WhiteElo "2713"]
[BlackElo "2512"]
[TimeControl "180+1"]
[EndTime "11:19:42 PDT"]
[Termination "GukeshDommaraju won by resignation"]

1. e4 {[%clk 0:03:00.9]} 1... e5 {[%clk 0:02:55]} 2. Nf3 {[%clk 0:03:01]} 2...
Nc6 {[%clk 0:02:55.5]} 3. Bb5 {[%clk 0:03:00.7]} 3... a6 {[%clk 0:02:55.9]} 4.
Ba4 {[%clk 0:03:00.9]} 4... Nf6 {[%clk 0:02:56.5]} 5. O-O {[%clk 0:03:01]} 5...
Be7 {[%clk 0:02:57]} 6. Re1 {[%clk 0:03:01.1]} 6... b5 {[%clk 0:02:57.6]} 7. Bb3
{[%clk 0:03:01.4]} 7... d6 {[%clk 0:02:58.2]} 8. c3 {[%clk 0:03:01.8]} 8... O-O
{[%clk 0:02:58.7]} 9. h3 {[%clk 0:03:02.2]} 9... Nb8 {[%clk 0:02:59]} 10. d4
{[%clk 0:03:02.4]} 10... Nbd7 {[%clk 0:02:59.6]} 11. c4 {[%clk 0:03:02.8]} 11...
c6 {[%clk 0:02:55.6]} 12. Nc3 {[%clk 0:03:02.8]} 12... Bb7 {[%clk 0:02:53.1]}
13. a3 {[%clk 0:02:48.9]} 13... Re8 {[%clk 0:02:49.3]} 14. Be3 {[%clk
0:02:42.5]} 14... Bf8 {[%clk 0:02:47.8]} 15. Ng5 {[%clk 0:02:39.1]} 15... bxc4
{[%clk 0:02:28.3]} 16. Bxc4 {[%clk 0:02:38.8]} 16... d5 {[%clk 0:02:28.1]} 17.
exd5 {[%clk 0:02:16.2]} 17... cxd5 {[%clk 0:02:27.7]} 18. Qb3 {[%clk 0:01:33.7]}
18... Rb8 {[%clk 0:02:05.8]} 19. Nxd5 {[%clk 0:01:33.6]} 19... Bxd5 {[%clk
0:02:03]} 20. Bxd5 {[%clk 0:01:33.8]} 20... Rxb3 {[%clk 0:01:25]} 21. Bxf7+
{[%clk 0:01:33.2]} 21... Kh8 {[%clk 0:01:24.8]} 22. Bxb3 {[%clk 0:01:34.1]}
22... Qb8 {[%clk 0:01:24.9]} 23. Nf7+ {[%clk 0:01:14.8]} 23... Kg8 {[%clk
0:01:22.4]} 24. Nh6+ {[%clk 0:01:03.6]} 24... Kh8 {[%clk 0:01:22]} 25. Nf7+
{[%clk 0:01:04.5]} 25... Kg8 {[%clk 0:01:22.1]} 26. Ba2 {[%clk 0:01:04.2]} 26...
g6 {[%clk 0:00:55.2]} 27. dxe5 {[%clk 0:00:58.2]} 27... Nh5 {[%clk 0:00:19.7]}
28. Red1 {[%clk 0:00:30.1]} 28... Nb6 {[%clk 0:00:18.7]} 29. Nd6+ {[%clk
0:00:26.2]} 29... Kh8 {[%clk 0:00:15.4]} 30. Nxe8 {[%clk 0:00:23.7]} 30... Qxe8
{[%clk 0:00:15.4]} 31. Bxb6 {[%clk 0:00:23.9]} 31... Nf4 {[%clk 0:00:14.3]} 32.
Rd8 {[%clk 0:00:22.2]} 32... Qe7 {[%clk 0:00:14.2]} 33. Rad1 {[%clk 0:00:18.3]}
33... Qg5 {[%clk 0:00:09.9]} 34. Rxf8+ {[%clk 0:00:17.7]} 34... Kg7 {[%clk
0:00:09.9]} 35. Rf7+ {[%clk 0:00:17.6]} 35... Kh6 {[%clk 0:00:10]} 36. Rxf4
{[%clk 0:00:17.1]} 1-0

[Event "*** SCC Grand Prix: Titled Tuesday Blitz"]
[Site "Chess.com"]
[Date "2020.08.25"]
[Round "7"]
[White "remi04"]
[Black "Shuvalov"]
[Result "0-1"]
[WhiteElo "2586"]
[BlackElo "2415"]
[TimeControl "180+1"]
[EndTime "11:19:42 PDT"]
[Termination "Shuvalov won by resignation"]

1. e4 {[%clk 0:03:00.9]} 1... e6 {[%clk 0:02:41.5]} 2. d4 {[%clk 0:03:00.3]}
2... d5 {[%clk 0:02:41.1]} 3. Bd3 {[%clk 0:03:00.9]} 3... Nf6 {[%clk 0:02:38.9]}
4. e5 {[%clk 0:03:00.8]} 4... Nfd7 {[%clk 0:02:38.9]} 5. Ne2 {[%clk 0:03:01.5]}
5... c5 {[%clk 0:02:38.9]} 6. c3 {[%clk 0:03:02.1]} 6... Nc6 {[%clk 0:02:38.1]}
7. O-O {[%clk 0:03:02.3]} 7... Qb6 {[%clk 0:02:35.1]} 8. Bc2 {[%clk 0:03:01.6]}
8... Qc7 {[%clk 0:02:32.7]} 9. Nd2 {[%clk 0:02:55.1]} 9... b6 {[%clk 0:02:32.1]}
10. Nf3 {[%clk 0:02:48.7]} 10... Ba6 {[%clk 0:02:32.2]} 11. Re1 {[%clk 0:02:47]}
11... Bxe2 {[%clk 0:02:31.1]} 12. Qxe2 {[%clk 0:02:45.5]} 12... h6 {[%clk
0:02:29.7]} 13. Be3 {[%clk 0:02:40.8]} 13... Be7 {[%clk 0:02:28.9]} 14. Rac1
{[%clk 0:02:40.3]} 14... c4 {[%clk 0:02:26.8]} 15. Nd2 {[%clk 0:02:37.7]} 15...
b5 {[%clk 0:02:26.8]} 16. f4 {[%clk 0:02:36.2]} 16... g6 {[%clk 0:02:27]} 17.
Nf1 {[%clk 0:02:34.4]} 17... h5 {[%clk 0:02:26.5]} 18. h3 {[%clk 0:02:32.6]}
18... h4 {[%clk 0:02:25.5]} 19. Nh2 {[%clk 0:02:31.7]} 19... a5 {[%clk
0:02:20.7]} 20. Qg4 {[%clk 0:02:27.1]} 20... O-O-O {[%clk 0:02:17.1]} 21. b3
{[%clk 0:02:23.5]} 21... Ba3 {[%clk 0:02:15.4]} 22. Rb1 {[%clk 0:02:22.9]} 22...
Nb6 {[%clk 0:02:12.6]} 23. bxc4 {[%clk 0:02:20]} 23... bxc4 {[%clk 0:02:05.7]}
24. Qd1 {[%clk 0:02:16.2]} 24... Kd7 {[%clk 0:02:03.4]} 25. Ng4 {[%clk
0:02:14.6]} 25... Be7 {[%clk 0:02:02.5]} 26. Rb5 {[%clk 0:02:04]} 26... Rb8
{[%clk 0:01:59.9]} 27. Qf3 {[%clk 0:02:00.4]} 27... Qa7 {[%clk 0:01:53.5]} 28.
Reb1 {[%clk 0:01:56.9]} 28... Na8 {[%clk 0:01:41.5]} 29. f5 {[%clk 0:01:32.2]}
29... gxf5 {[%clk 0:01:37.6]} 30. Bxf5 {[%clk 0:01:20.3]} 30... Nc7 {[%clk
0:01:31.9]} 31. Rxb8 {[%clk 0:01:09.1]} 31... Rxb8 {[%clk 0:01:30.5]} 32. Bc2
{[%clk 0:01:07.4]} 32... Rxb1+ {[%clk 0:01:29.8]} 33. Bxb1 {[%clk 0:01:07.5]}
33... Nd8 {[%clk 0:01:25.5]} 34. Bc2 {[%clk 0:01:05.2]} 34... Qb6 {[%clk
0:01:24.1]} 35. Bc1 {[%clk 0:00:59.1]} 35... Qb5 {[%clk 0:01:21.9]} 36. Nh6
{[%clk 0:00:52.1]} 36... Ke8 {[%clk 0:01:19.8]} 37. Qg4 {[%clk 0:00:51.4]} 37...
Bf8 {[%clk 0:01:15.2]} 38. Qxh4 {[%clk 0:00:50.9]} 38... a4 {[%clk 0:01:09.9]}
39. Ng8 {[%clk 0:00:48.7]} 39... Kd7 {[%clk 0:01:04.1]} 40. Nf6+ {[%clk
0:00:46.1]} 40... Kc8 {[%clk 0:01:03.8]} 41. Qf2 {[%clk 0:00:40.3]} 41... a3
{[%clk 0:01:00.9]} 42. h4 {[%clk 0:00:39.5]} 42... Qa5 {[%clk 0:01:00.4]} 43.
Qf3 {[%clk 0:00:37]} 43... Nb5 {[%clk 0:00:57.3]} 44. h5 {[%clk 0:00:30.1]}
44... Qxc3 {[%clk 0:00:54.9]} 45. Qxc3 {[%clk 0:00:28.5]} 45... Nxc3 {[%clk
0:00:55.8]} 46. h6 {[%clk 0:00:29.2]} 46... Ne2+ {[%clk 0:00:54.6]} 47. Kf2
{[%clk 0:00:22.8]} 47... Nxc1 {[%clk 0:00:55.5]} 48. h7 {[%clk 0:00:21.1]} 48...
Bg7 {[%clk 0:00:55.7]} 49. Ne8 {[%clk 0:00:20.4]} 49... Bh8 {[%clk 0:00:54.9]}
50. g4 {[%clk 0:00:19.6]} 50... Nxa2 {[%clk 0:00:53.8]} 51. g5 {[%clk
0:00:18.1]} 51... Nc3 {[%clk 0:00:53.5]} 0-1

[Event "*** SCC Grand Prix: Titled Tuesday Blitz"]
[Site "Chess.com"]
[Date "2020.08.25"]
[Round "7"]
[White "paulrusan"]
[Black "londonkid"]
[Result "0-1"]
[WhiteElo "2210"]
[BlackElo "2457"]
[TimeControl "180+1"]
[EndTime "11:19:46 PDT"]
[Termination "londonkid won on time"]

1. e4 {[%clk 0:03:00.9]} 1... e6 {[%clk 0:03:00]} 2. Nf3 {[%clk 0:03:00.2]} 2...
d5 {[%clk 0:03:00.2]} 3. e5 {[%clk 0:03:00.6]} 3... c5 {[%clk 0:03:00.1]} 4. b4
{[%clk 0:03:01.2]} 4... cxb4 {[%clk 0:03:00.5]} 5. a3 {[%clk 0:03:01.2]} 5...
Nc6 {[%clk 0:03:00.5]} 6. axb4 {[%clk 0:03:01.5]} 6... Bxb4 {[%clk 0:03:00.7]}
7. c3 {[%clk 0:03:01.9]} 7... Be7 {[%clk 0:03:01.2]} 8. d4 {[%clk 0:03:01.9]}
8... Bd7 {[%clk 0:03:01.4]} 9. Bd3 {[%clk 0:03:01.5]} 9... h5 {[%clk 0:03:01.8]}
10. O-O {[%clk 0:02:56.4]} 10... Nh6 {[%clk 0:02:57.8]} 11. Na3 {[%clk
0:02:54.3]} 11... a6 {[%clk 0:02:57]} 12. Nc2 {[%clk 0:02:53.3]} 12... Rc8
{[%clk 0:02:54.7]} 13. Bd2 {[%clk 0:02:48.6]} 13... Nf5 {[%clk 0:02:52.8]} 14.
Ne3 {[%clk 0:02:46.8]} 14... g6 {[%clk 0:02:51.1]} 15. g3 {[%clk 0:02:43.9]}
15... h4 {[%clk 0:02:42.5]} 16. g4 {[%clk 0:02:43.6]} 16... Nxe3 {[%clk
0:02:41.9]} 17. fxe3 {[%clk 0:02:42.5]} 17... h3 {[%clk 0:02:34.1]} 18. e4
{[%clk 0:02:16.2]} 18... dxe4 {[%clk 0:02:25.9]} 19. Bxe4 {[%clk 0:02:16]} 19...
Na5 {[%clk 0:02:17.9]} 20. Qe1 {[%clk 0:01:10.1]} 20... Bc6 {[%clk 0:02:12.4]}
21. Bxc6+ {[%clk 0:01:06.5]} 21... Rxc6 {[%clk 0:02:08.9]} 22. Qf2 {[%clk
0:01:04.2]} 22... O-O {[%clk 0:01:44]} 23. Rab1 {[%clk 0:00:43.1]} 23... Kg7
{[%clk 0:01:36.9]} 24. Qg3 {[%clk 0:00:38.4]} 24... Rh8 {[%clk 0:01:35.4]} 25.
Qf4 {[%clk 0:00:38.4]} 25... Qe8 {[%clk 0:01:24.8]} 26. Ng5 {[%clk 0:00:30.6]}
26... Bxg5 {[%clk 0:01:17.9]} 27. Qxg5 {[%clk 0:00:30.5]} 27... Nc4 {[%clk
0:01:11.6]} 28. Qf6+ {[%clk 0:00:27.5]} 28... Kg8 {[%clk 0:01:10.8]} 29. Bc1
{[%clk 0:00:21.8]} 29... Rc7 {[%clk 0:01:06.1]} 30. Rf3 {[%clk 0:00:19]} 30...
Qe7 {[%clk 0:01:02.2]} 31. Bg5 {[%clk 0:00:15.4]} 31... Qxf6 {[%clk 0:00:55.7]}
32. Bxf6 {[%clk 0:00:15.6]} 32... Rh7 {[%clk 0:00:56.4]} 33. Rb4 {[%clk
0:00:10.8]} 33... b5 {[%clk 0:00:56]} 34. Rf2 {[%clk 0:00:09.9]} 34... Ne3
{[%clk 0:00:52.9]} 35. Ra2 {[%clk 0:00:08.7]} 35... Nxg4 {[%clk 0:00:48.9]} 36.
Rxa6 {[%clk 0:00:07.9]} 36... Nxf6 {[%clk 0:00:39.4]} 37. exf6 {[%clk
0:00:08.3]} 37... Rh5 {[%clk 0:00:39.2]} 38. Ra8+ {[%clk 0:00:05.9]} 38... Kh7
{[%clk 0:00:38.6]} 39. c4 {[%clk 0:00:05.3]} 39... Rxc4 {[%clk 0:00:36.6]} 40.
Rxc4 {[%clk 0:00:04.9]} 40... bxc4 {[%clk 0:00:37.1]} 41. Rf8 {[%clk 0:00:04]}
41... Rg5+ {[%clk 0:00:35.4]} 0-1

[Event "*** SCC Grand Prix: Titled Tuesday Blitz"]
[Site "Chess.com"]
[Date "2020.08.25"]
[Round "7"]
[White "AlexeiShirov"]
[Black "gmcorrales"]
[Result "1-0"]
[WhiteElo "2747"]
[BlackElo "2900"]
[TimeControl "180+1"]
[EndTime "11:19:47 PDT"]
[Termination "AlexeiShirov won on time"]

1. e4 {[%clk 0:03:00.9]} 1... c5 {[%clk 0:02:59.8]} 2. Nf3 {[%clk 0:02:59.6]}
2... d6 {[%clk 0:03:00.2]} 3. d4 {[%clk 0:02:58.6]} 3... cxd4 {[%clk 0:03:01.1]}
4. Nxd4 {[%clk 0:02:57.6]} 4... Nf6 {[%clk 0:03:01.6]} 5. Nc3 {[%clk 0:02:56.5]}
5... a6 {[%clk 0:03:02.2]} 6. h3 {[%clk 0:02:55.4]} 6... e5 {[%clk 0:02:57]} 7.
Nb3 {[%clk 0:02:52.4]} 7... Be7 {[%clk 0:02:52.9]} 8. g4 {[%clk 0:02:50.6]} 8...
h6 {[%clk 0:02:52.8]} 9. Be3 {[%clk 0:02:49.1]} 9... Nbd7 {[%clk 0:02:51]} 10.
Qd2 {[%clk 0:02:33.2]} 10... b6 {[%clk 0:02:02.5]} 11. O-O-O {[%clk 0:02:28.6]}
11... Bb7 {[%clk 0:02:02]} 12. f3 {[%clk 0:02:27.1]} 12... Rc8 {[%clk
0:02:01.6]} 13. h4 {[%clk 0:02:26.5]} 13... Qc7 {[%clk 0:01:53.4]} 14. Bd3
{[%clk 0:02:25.2]} 14... b5 {[%clk 0:01:44]} 15. g5 {[%clk 0:02:23.7]} 15... Nh5
{[%clk 0:01:42.8]} 16. Nd5 {[%clk 0:02:16.8]} 16... Bxd5 {[%clk 0:01:40.9]} 17.
exd5 {[%clk 0:02:16.5]} 17... g6 {[%clk 0:01:16.3]} 18. Na5 {[%clk 0:02:03.9]}
18... Nb6 {[%clk 0:01:15.1]} 19. Bxb6 {[%clk 0:01:58.4]} 19... Qxb6 {[%clk
0:01:16]} 20. Nc6 {[%clk 0:01:58.2]} 20... Nf4 {[%clk 0:01:11.9]} 21. Be4 {[%clk
0:01:50.8]} 21... hxg5 {[%clk 0:01:06.8]} 22. hxg5 {[%clk 0:01:50.6]} 22... Rxh1
{[%clk 0:01:06.2]} 23. Rxh1 {[%clk 0:01:50.1]} 23... Bxg5 {[%clk 0:01:06.4]} 24.
Kb1 {[%clk 0:01:49.5]} 24... Bf6 {[%clk 0:00:40.8]} 25. Qb4 {[%clk 0:01:37.7]}
25... Qc7 {[%clk 0:00:34.7]} 26. a4 {[%clk 0:01:35.8]} 26... Kf8 {[%clk
0:00:26.9]} 27. axb5 {[%clk 0:01:33.5]} 27... axb5 {[%clk 0:00:27.8]} 28. Qxb5
{[%clk 0:01:24.3]} 28... Kg7 {[%clk 0:00:28]} 29. c3 {[%clk 0:01:19.1]} 29...
Bg5 {[%clk 0:00:27]} 30. Rg1 {[%clk 0:01:17.3]} 30... Bh4 {[%clk 0:00:25]} 31.
Kc2 {[%clk 0:01:15.4]} 31... Bf2 {[%clk 0:00:23.9]} 32. Rf1 {[%clk 0:01:13]}
32... Bb6 {[%clk 0:00:23.4]} 33. b4 {[%clk 0:01:10.5]} 33... Rh8 {[%clk
0:00:23.3]} 34. Kb3 {[%clk 0:01:09.6]} 34... Rh2 {[%clk 0:00:17.4]} 35. Ra1
{[%clk 0:01:08.9]} 35... Be3 {[%clk 0:00:14.9]} 36. Ra8 {[%clk 0:01:05.2]} 36...
Ne2 {[%clk 0:00:10.6]} 37. Re8 {[%clk 0:00:49.4]} 37... Bd2 {[%clk 0:00:06]} 38.
Re7 {[%clk 0:00:46.3]} 38... Qc8 {[%clk 0:00:06.3]} 39. Qb6 {[%clk 0:00:43.1]}
39... Bxc3 {[%clk 0:00:05.5]} 40. Qa7 {[%clk 0:00:41.6]} 40... Qf8 {[%clk
0:00:05.7]} 41. Nd8 {[%clk 0:00:41.5]} 41... Kg8 {[%clk 0:00:02.7]} 42. Rxf7
{[%clk 0:00:39.6]} 42... Qxd8 {[%clk 0:00:03]} 43. Rg7+ {[%clk 0:00:38]} 43...
Kh8 {[%clk 0:00:02.7]} 44. Bxg6 {[%clk 0:00:37.4]} 44... Bd4 {[%clk 0:00:02.5]}
45. Rh7+ {[%clk 0:00:36.6]} 1-0

[Event "*** SCC Grand Prix: Titled Tuesday Blitz"]
[Site "Chess.com"]
[Date "2020.08.25"]
[Round "7"]
[White "Roza_Idrisova"]
[Black "teacher4chess"]
[Result "1-0"]
[WhiteElo "2198"]
[BlackElo "2027"]
[TimeControl "180+1"]
[EndTime "11:19:47 PDT"]
[Termination "Roza_Idrisova won on time"]

1. d4 {[%clk 0:03:00.9]} 1... d5 {[%clk 0:02:58.6]} 2. Nf3 {[%clk 0:03:01]} 2...
Nf6 {[%clk 0:02:58]} 3. Bg5 {[%clk 0:03:00.7]} 3... Ne4 {[%clk 0:02:57.4]} 4.
Bf4 {[%clk 0:03:00.5]} 4... c5 {[%clk 0:02:57.8]} 5. c3 {[%clk 0:02:59.5]} 5...
Qb6 {[%clk 0:02:57.6]} 6. Qb3 {[%clk 0:02:59.1]} 6... Nc6 {[%clk 0:02:53.9]} 7.
e3 {[%clk 0:02:58.9]} 7... Bf5 {[%clk 0:02:42.2]} 8. Nbd2 {[%clk 0:02:58]} 8...
Nxd2 {[%clk 0:02:35]} 9. Nxd2 {[%clk 0:02:57.2]} 9... c4 {[%clk 0:02:34.8]} 10.
Qxb6 {[%clk 0:02:56.5]} 10... axb6 {[%clk 0:02:34.4]} 11. a3 {[%clk 0:02:56.5]}
11... f6 {[%clk 0:02:28.5]} 12. Be2 {[%clk 0:02:56.4]} 12... e5 {[%clk 0:02:27]}
13. Bg3 {[%clk 0:02:55.8]} 13... Bd6 {[%clk 0:02:18.9]} 14. O-O {[%clk 0:02:55]}
14... O-O {[%clk 0:02:14.9]} 15. Rfe1 {[%clk 0:02:54.5]} 15... b5 {[%clk
0:02:00]} 16. Bf1 {[%clk 0:02:48.6]} 16... Kf7 {[%clk 0:01:51.1]} 17. h3 {[%clk
0:02:47.3]} 17... Rfd8 {[%clk 0:01:42.3]} 18. Nf3 {[%clk 0:02:45.7]} 18... e4
{[%clk 0:01:26.9]} 19. Bxd6 {[%clk 0:02:39.4]} 19... Rxd6 {[%clk 0:01:22.6]} 20.
Nd2 {[%clk 0:02:36.5]} 20... Bd7 {[%clk 0:00:48]} 21. f3 {[%clk 0:02:35.6]}
21... f5 {[%clk 0:00:45.8]} 22. fxe4 {[%clk 0:02:32.6]} 22... fxe4 {[%clk
0:00:45.5]} 23. Be2 {[%clk 0:02:32.8]} 23... Na5 {[%clk 0:00:40.6]} 24. Rf1+
{[%clk 0:02:31.9]} 24... Rf6 {[%clk 0:00:40.6]} 25. Rxf6+ {[%clk 0:02:30.6]}
25... Kxf6 {[%clk 0:00:40.6]} 26. Rf1+ {[%clk 0:02:30.2]} 26... Ke7 {[%clk
0:00:40.5]} 27. Kh2 {[%clk 0:02:18.3]} 27... Rf8 {[%clk 0:00:27.8]} 28. Rxf8
{[%clk 0:02:16.8]} 28... Kxf8 {[%clk 0:00:27.8]} 29. Kg3 {[%clk 0:02:16.9]}
29... Ke7 {[%clk 0:00:27.8]} 30. Kf4 {[%clk 0:02:16.6]} 30... Kf6 {[%clk
0:00:28.4]} 31. h4 {[%clk 0:02:15.8]} 31... g6 {[%clk 0:00:27.1]} 32. g4 {[%clk
0:02:14.8]} 32... h6 {[%clk 0:00:25.3]} 33. g5+ {[%clk 0:02:14.8]} 33... hxg5+
{[%clk 0:00:25.1]} 34. hxg5+ {[%clk 0:02:15]} 34... Ke7 {[%clk 0:00:19.4]} 35.
Ke5 {[%clk 0:02:13.1]} 35... Be6 {[%clk 0:00:18.4]} 36. Kf4 {[%clk 0:02:00.4]}
36... Nc6 {[%clk 0:00:17.5]} 37. Bd1 {[%clk 0:01:55.6]} 37... Kd6 {[%clk
0:00:17.2]} 38. Nf1 {[%clk 0:01:53.5]} 38... Ne7 {[%clk 0:00:16.9]} 39. Ng3
{[%clk 0:01:52.8]} 39... Nf5 {[%clk 0:00:16.2]} 40. Nxf5+ {[%clk 0:01:52.1]}
40... Bxf5 {[%clk 0:00:16.2]} 41. a4 {[%clk 0:01:43.7]} 41... bxa4 {[%clk
0:00:10.1]} 42. Bxa4 {[%clk 0:01:42.8]} 42... b6 {[%clk 0:00:09.9]} 43. Be8
{[%clk 0:01:40.9]} 43... Ke7 {[%clk 0:00:09.5]} 44. Bc6 {[%clk 0:01:40.2]} 44...
Kd6 {[%clk 0:00:09.6]} 45. Bb7 {[%clk 0:01:39.9]} 45... Be6 {[%clk 0:00:06.7]}
46. Ba6 {[%clk 0:01:36.1]} 46... Bf5 {[%clk 0:00:06.8]} 47. Bb5 {[%clk
0:01:35.6]} 47... Be6 {[%clk 0:00:05.2]} 48. Ba4 {[%clk 0:01:30.6]} 48... Bf5
{[%clk 0:00:04.6]} 49. Bc2 {[%clk 0:01:30]} 49... b5 {[%clk 0:00:04.4]} 50. b3
{[%clk 0:01:18.6]} 50... Kc6 {[%clk 0:00:02.8]} 51. bxc4 {[%clk 0:01:17.6]}
51... bxc4 {[%clk 0:00:01.9]} 52. Ke5 {[%clk 0:01:17.1]} 1-0